fUSD/lending_fUSD_20240527
["ID","MTS","AMOUNT","RATE_DAILY","PERIOD"]
[328026438,1716774690532,-1824.51,0.00032,4]
[328026439,1716774690542,-1935.21237,0.00032,2]
[328026440,1716774690551,-155.954525,0.00032,7]
[328026441,1716774690562,-168.696,0.00032005,4]
[328026442,1716774690571,-168.696,0.00032005,4]
[328026443,1716774690581,-168.697,0.00032005,4]
[328026444,1716774690590,-168.697,0.00032005,4]
[328026445,1716774690600,-168.696,0.00032005,4]
[328026446,1716774690610,-221.47613719,0.00032052,4]
[328026447,1716774690620,-1483.97277034,0.00032052,4]
[328026448,1716774690629,-233.84436844,0.00032053,4]
[328026449,1716774690640,-548.99,0.00032054,4]
[328026450,1716774690651,-623.54,0.00032054,4]
[328026451,1716774690670,-224.32,0.00032054,4]
[328026452,1716774690684,-500.0,0.00032054,4]
[328026453,1716774690695,-500.0,0.00032054,4]
[328026454,1716774690704,-716.7,0.00032054,4]
[328026455,1716774690714,-271.32394055,0.00032054,4]
[328026456,1716774690724,-520.81,0.00032054,4]
[328026457,1716774690734,-502.71,0.00032054,4]
[328026458,1716774690743,-809.78,0.00032054,4]
[328026459,1716774690754,-920.26,0.00032054,4]
[328026460,1716774690765,-500.0,0.00032054,4]
[328026461,1716774690775,-522.9,0.00032054,4]
[328026462,1716774690784,-559.7,0.00032054,4]
[328026463,1716774690794,-3246.39,0.00032054,4]
[328026464,1716774690804,-850.87,0.00032054,4]
[328026465,1716774690814,-1876.14,0.00032054,4]
[328026466,1716774690826,-500.0,0.00032054,4]
[328026467,1716774690837,-1150.71,0.00032054,4]
[328026468,1716774690847,-665.62,0.00032054,4]
[328026469,1716774690857,-500.0,0.00032054,4]
[328026470,1716774690867,-1737.1,0.00032054,4]
[328026471,1716774690877,-589.83,0.00032054,4]
[328026472,1716774690887,-1057.8,0.00032054,4]
[328026473,1716774690899,-500.0,0.00032054,4]
[328026474,1716774691145,-538.99,0.00032054,4]
[328026475,1716774691155,-674.64,0.00032054,4]
[328026476,1716774691165,-1379.1,0.00032054,4]
[328026477,1716774691175,-903.17,0.00032054,4]
[328026478,1716774691186,-469.66732017,0.00032054,4]
[328026479,1716774691196,-500.0,0.00032054,4]
[328026480,1716774691206,-500.0,0.00032054,4]
[328026481,1716774691216,-500.0,0.00032054,4]
[328026482,1716774691226,-640.90087042,0.00032054,4]
[328026483,1716774691237,-1792.24,0.00032054,4]
[328026484,1716774691247,-500.0,0.00032054,4]
[328026485,1716774691260,-500.0,0.00032054,4]
[328026486,1716774691270,-555.55,0.00032054,4]
[328026487,1716774691280,-500.0,0.00032054,4]
[328026488,1716774691290,-554.9,0.00032054,4]
[328026489,1716774691301,-593.69,0.00032054,4]
[328026490,1716774691311,-1375.79,0.00032054,4]
[328026491,1716774691321,-797.4,0.00032054,4]
[328026492,1716774691332,-313.01485087,0.00032054,4]
[328026493,1716774691343,-500.0,0.00032054,4]
[328026494,1716774691352,-811.5,0.00032054,4]
[328026495,1716774691362,-752.63,0.00032054,4]
[328026496,1716774691372,-500.0,0.00032054,4]
[328026497,1716774691383,-508.3,0.00032054,4]
[328026498,1716774691395,-612.14,0.00032054,4]
[328026499,1716774691406,-1562.49,0.00032054,4]
[328026500,1716774691416,-500.0,0.00032054,4]
[328026501,1716774691425,-1201.55,0.00032054,4]
[328026502,1716774691434,-500.0,0.00032054,4]
[328026503,1716774691446,-545.25,0.00032054,4]
[328026504,1716774691460,-500.0,0.00032054,4]
[328026505,1716774691469,-753.55,0.00032054,4]
[328026506,1716774691479,-1011.37,0.00032054,4]
[328026507,1716774691489,-666.41,0.00032054,4]
[328026508,1716774691499,-1614.98,0.00032054,4]
[328026509,1716774691508,-801.81,0.00032054,4]
[328026510,1716774691518,-664.62,0.00032054,4]
[328026511,1716774691528,-584.07,0.00032054,4]
[328026512,1716774691537,-1253.98,0.00032054,4]
[328026513,1716774691547,-1261.26,0.00032054,4]
[328026514,1716774691557,-576.77,0.00032054,4]
[328026515,1716774691566,-1690.76,0.00032054,4]
[328026516,1716774691576,-603.3,0.00032054,4]
[328026517,1716774691586,-500.0,0.00032054,4]
[328026518,1716774691596,-12954.13,0.00032054,4]
[328026519,1716774691606,-187.11,0.0003206,2]
[328026520,1716774691615,-164.77895299,0.00032072,2]
[328026521,1716774691625,-114592.5731491,0.00032319,2]
[328026522,1716774691634,-8659.2458467,0.00032319,2]
[328026523,1716774691647,-5677.7391314,0.00032319,2]
[328026524,1716774691656,-5696.544041,0.00032319,2]
[328026525,1716774691665,-8512.5104356,0.00032319,2]
[328026526,1716774691674,-307.7969438,0.00032319,2]
[328026527,1716774691684,-602.733275,0.00032319,2]
[328026528,1716774691694,-387.78667764,0.00032319,2]
[328026529,1716774691703,-529.11327638,0.00032319,2]
[328026530,1716774691713,-548.99,0.00032328,4]
[328026531,1716774691722,-623.54,0.00032328,4]
[328026532,1716774691731,-500.0,0.00032328,4]
[328026533,1716774691741,-593.5,0.00032328,4]
[328026534,1716774691751,-716.7,0.00032328,4]
[328026535,1716774691760,-520.81,0.00032328,4]
[328026536,1716774691770,-502.71,0.00032328,4]
[328026537,1716774691780,-809.78,0.00032328,4]
[328026538,1716774691789,-920.26,0.00032328,4]
[328026539,1716774691799,-636.05949058,0.00032328,4]
[328026540,1716774691809,-522.9,0.00032328,4]
[328026541,1716774691819,-559.7,0.00032328,4]
[328026542,1716774691828,-3246.39,0.00032328,4]
[328026543,1716774691837,-850.87,0.00032328,4]
[328026544,1716774691846,-1876.14,0.00032328,4]
[328026545,1716774691856,-500.0,0.00032328,4]
[328026546,1716774691866,-1150.71,0.00032328,4]
[328026547,1716774691875,-665.62,0.00032328,4]
[328026548,1716774691884,-500.0,0.00032328,4]
[328026549,1716774691895,-1737.1,0.00032328,4]
[328026550,1716774691905,-589.83,0.00032328,4]
[328026551,1716774691915,-1057.8,0.00032328,4]
[328026552,1716774691924,-500.0,0.00032328,4]
[328026553,1716774691934,-538.99,0.00032328,4]
[328026554,1716774691943,-674.64,0.00032328,4]
[328026555,1716774691953,-1379.1,0.00032328,4]
[328026556,1716774691963,-903.17,0.00032328,4]
[328026557,1716774691972,-500.0,0.00032328,4]
[328026558,1716774691982,-634.39902758,0.00032328,4]
[328026559,1716774691991,-500.0,0.00032328,4]
[328026560,1716774692001,-1792.24,0.00032328,4]
[328026561,1716774692011,-500.0,0.00032328,4]
[328026562,1716774692020,-259.74540756,0.00032328,4]
[328026563,1716774692030,-555.55,0.00032328,4]
[328026564,1716774692039,-500.0,0.00032328,4]
[328026565,1716774692048,-554.9,0.00032328,4]
[328026566,1716774692058,-593.69,0.00032328,4]
[328026567,1716774692067,-1375.79,0.00032328,4]
[328026568,1716774692076,-797.4,0.00032328,4]
[328026569,1716774692086,-500.0,0.00032328,4]
[328026570,1716774692095,-811.5,0.00032328,4]
[328026571,1716774692104,-752.63,0.00032328,4]
[328026572,1716774692114,-500.0,0.00032328,4]
[328026573,1716774692123,-508.3,0.00032328,4]
[328026574,1716774692132,-612.14,0.00032328,4]
[328026575,1716774692143,-1562.49,0.00032328,4]
[328026576,1716774692152,-500.0,0.00032328,4]
[328026577,1716774692161,-1201.55,0.00032328,4]
[328026578,1716774692171,-349.32079302,0.00032328,4]
[328026579,1716774692180,-545.25,0.00032328,4]
[328026580,1716774692189,-331.51343072,0.00032328,4]
[328026581,1716774692198,-753.55,0.00032328,4]
[328026582,1716774692207,-1011.37,0.00032328,4]
[328026583,1716774692216,-666.41,0.00032328,4]
[328026584,1716774692225,-1614.98,0.00032328,4]
[328026585,1716774692235,-801.81,0.00032328,4]
[328026586,1716774692244,-664.62,0.00032328,4]
[328026587,1716774692253,-584.07,0.00032328,4]
[328026588,1716774692263,-1253.98,0.00032328,4]
[328026589,1716774692273,-1261.26,0.00032328,4]
[328026590,1716774692286,-576.77,0.00032328,4]
[328026591,1716774692295,-1690.76,0.00032328,4]
[328026592,1716774692304,-603.3,0.00032328,4]
[328026593,1716774692314,-500.0,0.00032328,4]
[328026594,1716774692324,-12954.13,0.00032328,4]
[328026595,1716774692334,-179.9330926,0.00032556,2]
[328026596,1716774692344,-4886.62513061,0.00032601,4]
[328026597,1716774692354,-548.99,0.00032602,4]
[328026598,1716774692364,-623.54,0.00032602,4]
[328026599,1716774692374,-284.12642298,0.00032602,4]
[328026600,1716774692383,-716.7,0.00032602,4]
[328026601,1716774692396,-520.81,0.00032602,4]
[328026602,1716774692406,-502.71,0.00032602,4]
[328026603,1716774692415,-809.78,0.00032602,4]
[328026604,1716774692424,-920.26,0.00032602,4]
[328026605,1716774692433,-522.9,0.00032602,4]
[328026606,1716774692443,-559.7,0.00032602,4]
[328026607,1716774692452,-3246.39,0.00032602,4]
[328026608,1716774692462,-850.87,0.00032602,4]
[328026609,1716774692472,-1876.14,0.00032602,4]
[328026610,1716774692481,-500.0,0.00032602,4]
[328026611,1716774692491,-1150.71,0.00032602,4]
[328026612,1716774692500,-665.62,0.00032602,4]
[328026613,1716774692509,-500.0,0.00032602,4]
[328026614,1716774692519,-1737.1,0.00032602,4]
[328026615,1716774692528,-589.83,0.00032602,4]
[328026616,1716774692538,-1057.8,0.00032602,4]
[328026617,1716774692547,-500.0,0.00032602,4]
[328026618,1716774692556,-538.99,0.00032602,4]
[328026619,1716774692565,-674.64,0.00032602,4]
[328026620,1716774692575,-1379.1,0.00032602,4]
[328026621,1716774692584,-903.17,0.00032602,4]
[328026622,1716774692593,-500.0,0.00032602,4]
[328026623,1716774692603,-500.0,0.00032602,4]
[328026624,1716774692612,-1792.24,0.00032602,4]
[328026625,1716774692622,-423.95317823,0.00032602,4]
[328026626,1716774692631,-555.55,0.00032602,4]
[328026627,1716774692641,-500.0,0.00032602,4]
[328026628,1716774692652,-554.9,0.00032602,4]
[328026629,1716774692662,-593.69,0.00032602,4]
[328026630,1716774692670,-1375.79,0.00032602,4]
[328026631,1716774692679,-797.4,0.00032602,4]
[328026632,1716774692688,-500.0,0.00032602,4]
[328026633,1716774692698,-811.5,0.00032602,4]
[328026634,1716774692707,-752.63,0.00032602,4]
[328026635,1716774692717,-500.0,0.00032602,4]
[328026636,1716774692726,-508.3,0.00032602,4]
[328026637,1716774692735,-612.14,0.00032602,4]
[328026638,1716774692745,-1562.49,0.00032602,4]
[328026639,1716774692754,-407.89647815,0.00032602,4]
[328026640,1716774692763,-1201.55,0.00032602,4]
[328026641,1716774692773,-545.25,0.00032602,4]
[328026642,1716774692783,-753.55,0.00032602,4]
[328026643,1716774692792,-1011.37,0.00032602,4]
[328026644,1716774692801,-666.41,0.00032602,4]
[328026645,1716774692811,-1614.98,0.00032602,4]
[328026646,1716774692820,-801.81,0.00032602,4]
[328026647,1716774692829,-664.62,0.00032602,4]
[328026648,1716774692839,-584.07,0.00032602,4]
[328026649,1716774692848,-1253.98,0.00032602,4]
[328026650,1716774692858,-1261.26,0.00032602,4]
[328026651,1716774692867,-576.77,0.00032602,4]
[328026652,1716774692877,-1690.76,0.00032602,4]
[328026653,1716774692886,-603.3,0.00032602,4]
[328026654,1716774692898,-500.0,0.00032602,4]
[328026655,1716774692907,-12954.13,0.00032602,4]
[328026656,1716774692916,-158.32749788,0.00032875,50]
[328026657,1716774692925,-548.99,0.00032876,4]
[328026658,1716774692935,-623.54,0.00032876,4]
[328026659,1716774692944,-716.7,0.00032876,4]
[328026660,1716774692954,-520.81,0.00032876,4]
[328026661,1716774692963,-502.71,0.00032876,4]
[328026662,1716774692972,-809.78,0.00032876,4]
[328026663,1716774692981,-920.26,0.00032876,4]
[328026664,1716774692991,-522.9,0.00032876,4]
[328026665,1716774693000,-559.7,0.00032876,4]
[328026666,1716774693009,-3246.39,0.00032876,4]
[328026667,1716774693018,-850.87,0.00032876,4]
[328026668,1716774693027,-1876.14,0.00032876,4]
[328026669,1716774693036,-500.0,0.00032876,4]
[328026670,1716774693046,-1150.71,0.00032876,4]
[328026671,1716774693055,-665.62,0.00032876,4]
[328026672,1716774693065,-550.04,0.00032876,4]
[328026673,1716774693074,-1737.1,0.00032876,4]
[328026674,1716774693084,-589.83,0.00032876,4]
[328026675,1716774693093,-1057.8,0.00032876,4]
[328026676,1716774693103,-379.76469292,0.00032876,4]
[328026677,1716774693112,-538.99,0.00032876,4]
[328026678,1716774693122,-674.64,0.00032876,4]
[328026679,1716774693133,-1379.1,0.00032876,4]
[328026680,1716774693146,-903.17,0.00032876,4]
[328026681,1716774693156,-223.65366949,0.00032876,4]
[328026682,1716774693166,-323.59406735,0.00032876,4]
[328026683,1716774693176,-1792.24,0.00032876,4]
[328026684,1716774693185,-555.55,0.00032876,4]
[328026685,1716774693194,-500.0,0.00032876,4]
[328026686,1716774693203,-554.9,0.00032876,4]
[328026687,1716774693214,-593.69,0.00032876,4]
[328026688,1716774693223,-1375.79,0.00032876,4]
[328026689,1716774693232,-797.4,0.00032876,4]
[328026690,1716774693242,-152.23831381,0.00032876,4]
[328026691,1716774693255,-811.5,0.00032876,4]
[328026692,1716774693264,-752.63,0.00032876,4]
[328026693,1716774693273,-438.87230544,0.00032876,4]
[328026694,1716774693283,-508.3,0.00032876,4]
[328026695,1716774693293,-612.14,0.00032876,4]
[328026696,1716774693302,-1562.49,0.00032876,4]
[328026697,1716774693312,-1201.55,0.00032876,4]
[328026698,1716774693323,-545.25,0.00032876,4]
[328026699,1716774693334,-753.55,0.00032876,4]
[328026700,1716774693344,-1011.37,0.00032876,4]
[328026701,1716774693354,-666.41,0.00032876,4]
[328026702,1716774693364,-1614.98,0.00032876,4]
[328026703,1716774693374,-801.81,0.00032876,4]
[328026704,1716774693383,-664.62,0.00032876,4]
[328026705,1716774693396,-584.07,0.00032876,4]
[328026706,1716774693405,-1253.98,0.00032876,4]
[328026707,1716774693414,-1261.26,0.00032876,4]
[328026708,1716774693424,-576.77,0.00032876,4]
[328026709,1716774693433,-1690.76,0.00032876,4]
[328026710,1716774693441,-603.3,0.00032876,4]
[328026711,1716774693453,-500.0,0.00032876,4]
[328026712,1716774693463,-12954.13,0.00032876,4]
[328026713,1716774693472,-1355.80217476,0.000329,30]
[328026714,1716774693481,-332.9630001,0.000329,2]
[328026715,1716774693491,-514.43028827,0.000329,2]
[328026716,1716774693500,-152.0,0.00032941,3]
[328026717,1716774693509,-203.801666,0.00033065,120]
[328026718,1716774693518,-961.43140366,0.00033148,4]
[328026719,1716774693528,-409.69614914,0.00033149,2]
[328026720,1716774693537,-548.99,0.0003315,4]
[328026721,1716774693546,-623.54,0.0003315,4]
[328026722,1716774693557,-716.7,0.0003315,4]
[328026723,1716774693566,-520.81,0.0003315,4]
[328026724,1716774693576,-502.71,0.0003315,4]
[328026725,1716774693585,-809.78,0.0003315,4]
[328026726,1716774693594,-920.26,0.0003315,4]
[328026727,1716774693603,-522.9,0.0003315,4]
[328026728,1716774693614,-559.7,0.0003315,4]
[328026729,1716774693623,-3246.39,0.0003315,4]
[328026730,1716774693633,-850.87,0.0003315,4]
[328026731,1716774693645,-1876.14,0.0003315,4]
[328026732,1716774693654,-500.0,0.0003315,4]
[328026733,1716774693663,-1150.71,0.0003315,4]
[328026734,1716774693673,-665.62,0.0003315,4]
[328026735,1716774693682,-1737.1,0.0003315,4]
[328026736,1716774693692,-589.83,0.0003315,4]
[328026737,1716774693702,-1057.8,0.0003315,4]
[328026738,1716774693711,-538.99,0.0003315,4]
[328026739,1716774693721,-674.64,0.0003315,4]
[328026740,1716774693732,-1379.1,0.0003315,4]
[328026741,1716774693741,-903.17,0.0003315,4]
[328026742,1716774693751,-1792.24,0.0003315,4]
[328026743,1716774693760,-555.55,0.0003315,4]
[328026744,1716774693770,-500.0,0.0003315,4]
[328026745,1716774693780,-554.9,0.0003315,4]
[328026746,1716774693790,-593.69,0.0003315,4]
[328026747,1716774693799,-1375.79,0.0003315,4]
[328026748,1716774693809,-797.4,0.0003315,4]
[328026749,1716774693822,-811.5,0.0003315,4]
[328026750,1716774693834,-752.63,0.0003315,4]
[328026751,1716774693847,-508.3,0.0003315,4]
[328026752,1716774693858,-612.14,0.0003315,4]
[328026753,1716774693869,-1562.49,0.0003315,4]
[328026754,1716774693882,-1201.55,0.0003315,4]
[328026755,1716774693895,-545.25,0.0003315,4]
[328026756,1716774693907,-753.55,0.0003315,4]
[328026757,1716774693918,-1011.37,0.0003315,4]
[328026758,1716774693929,-666.41,0.0003315,4]
[328026759,1716774693941,-1614.98,0.0003315,4]
[328026760,1716774693953,-801.81,0.0003315,4]
[328026761,1716774693965,-664.62,0.0003315,4]
[328026762,1716774693978,-584.07,0.0003315,4]
[328026763,1716774693991,-1253.98,0.0003315,4]
[328026764,1716774694003,-1261.26,0.0003315,4]
[328026765,1716774694015,-576.77,0.0003315,4]
[328026766,1716774694027,-1690.76,0.0003315,4]
[328026767,1716774694039,-603.3,0.0003315,4]
[328026768,1716774694051,-500.0,0.0003315,4]
[328026769,1716774694063,-12954.13,0.0003315,4]
[328026770,1716774694075,-511.29,0.00033151,120]
[328026771,1716774694087,-5140.0,0.000332,6]
[328026772,1716774694099,-150.5,0.0003321,15]
[328026773,1716774694110,-290.86,0.0003321,15]
[328026774,1716774694121,-92895.5424462,0.00033213,2]
[328026775,1716774694132,-71198.5117434,0.00033213,2]
[328026776,1716774694147,-49501.4810405,0.00033213,2]
[328026777,1716774694158,-27804.4503377,0.00033213,2]
[328026778,1716774694171,-7019.6987292,0.00033213,2]
[328026779,1716774694184,-5380.1516116,0.00033213,2]
[328026780,1716774694196,-3740.604494,0.00033213,2]
[328026781,1716774694208,-2101.0573765,0.00033213,2]
[328026782,1716774694221,-4602.7123921,0.00033213,2]
[328026783,1716774694233,-3527.6856529,0.00033213,2]
[328026784,1716774694245,-2452.6589136,0.00033213,2]
[328026785,1716774694260,-1377.6321743,0.00033213,2]
[328026786,1716774694271,-4617.9567682,0.00033213,2]
[328026787,1716774694282,-3539.3694954,0.00033213,2]
[328026788,1716774694292,-2460.7822225,0.00033213,2]
[328026789,1716774694303,-1382.1949497,0.00033213,2]
[328026790,1716774694314,-6900.7462941,0.00033213,2]
[328026791,1716774694327,-5288.9821526,0.00033213,2]
[328026792,1716774694341,-3677.2180112,0.00033213,2]
[328026793,1716774694354,-2065.4538697,0.00033213,2]
[328026794,1716774694365,-150.5,0.0003322,15]
[328026795,1716774694375,-150.5,0.0003322,15]
[328026796,1716774694385,-408.55566726,0.00033235,4]
[328026797,1716774694398,-151.92409218,0.00033235,2]
[328026798,1716774694410,-1915566.00862207,0.00033236,2]
[328026799,1716774694648,-1383.8566216,0.00033236,2]
[328026800,1716774694659,-82.50619704,0.00033252,30]
[328026801,1716774694673,-560.58454009,0.00033252,30]
[328026802,1716774694687,-1588.1333431,0.00033252,30]
[328026803,1716774694701,-3573.5898,0.00033252,30]
[328026804,1716774694755,-500.0,0.00027671,4]
[328026805,1716774694765,-500.0,0.00027671,4]
[328026806,1716774694774,-500.0,0.00029041,4]
[328026807,1716774694784,-500.0,0.00029589,4]
[328026808,1716774694793,-500.0,0.00030136,4]
[328026809,1716774694802,-341.65824136,0.00030136,4]
[328026810,1716774694811,-344.21549859,0.00030958,4]
[328026811,1716774694821,-269.04014153,0.00033252,30]
[328026812,1716774694833,-4573.12527942,0.00033252,30]
[328026813,1716774694843,-467.9407,0.00033252,30]
[328026814,1716774694852,-261.13710631,0.00033252,60]
[328026815,1716774694862,-161.0,0.00033252,120]
[328026816,1716774694871,-150.0,0.00033252,2]
[328026817,1716774694880,-151.83915202,0.00033252,120]
[328026818,1716774694889,-413.96776227,0.00033252,20]
[328026819,1716774694903,-216.34492026,0.00033252,20]
[328026820,1716774694912,-150.0,0.00033252,3]
[328026821,1716774694921,-643.65507974,0.00033355,5]
[328026822,1716774695007,-2331.21370194,0.00012999,2]
[328026823,1716774695017,-2611.26503579,0.00021731,2]
[328026824,1716774695026,-500.0,0.00027945,4]
[328026825,1716774695037,-500.0,0.00027945,4]
[328026826,1716774695047,-500.0,0.00028219,4]
[328026827,1716774695059,-381.05411282,0.00028219,4]
[328026828,1716774695070,-118.94588718,0.00028219,4]
[328026829,1716774695080,-500.0,0.00028493,4]
[328026830,1716774695090,-500.0,0.00028493,4]
[328026831,1716774695099,-500.0,0.00028767,4]
[328026832,1716774695108,-500.0,0.00028767,4]
[328026833,1716774695118,-500.0,0.00029315,4]
[328026834,1716774695128,-500.0,0.00029589,4]
[328026835,1716774695138,-500.0,0.00029863,4]
[328026836,1716774695150,-500.0,0.00029863,4]
[328026837,1716774695159,-500.0,0.00030136,4]
[328026838,1716774695168,-500.0,0.00030136,4]
[328026839,1716774695178,-150.48914125,0.0003041,4]
[328026840,1716774695187,-21647.35192924,0.00033355,5]
[328026841,1716774695197,-231.1,0.00033396,2]
[328026842,1716774695207,-155.65252056,0.00033422,4]
[328026843,1716774695216,-260.19458091,0.00033422,4]
[328026844,1716774695225,-410.27026242,0.00033423,2]
[328026845,1716774695235,-426.75743422,0.00033423,4]
[328026846,1716774695244,-548.99,0.00033424,4]
[328026847,1716774695257,-623.54,0.00033424,4]
[328026848,1716774695266,-716.7,0.00033424,4]
[328026849,1716774695277,-520.81,0.00033424,4]
[328026850,1716774695287,-502.71,0.00033424,4]
[328026851,1716774695296,-809.78,0.00033424,4]
[328026852,1716774695305,-920.26,0.00033424,4]
[328026853,1716774695316,-522.9,0.00033424,4]
[328026854,1716774695326,-559.7,0.00033424,4]
[328026855,1716774695335,-3246.39,0.00033424,4]
[328026856,1716774695345,-850.87,0.00033424,4]
[328026857,1716774695355,-1876.14,0.00033424,4]
[328026858,1716774695364,-491.89181906,0.00033424,4]
[328026859,1716774695374,-1150.71,0.00033424,4]
[328026860,1716774695383,-665.62,0.00033424,4]
[328026861,1716774695393,-1737.1,0.00033424,4]
[328026862,1716774695403,-589.83,0.00033424,4]
[328026863,1716774695413,-1057.8,0.00033424,4]
[328026864,1716774695422,-427.14705926,0.00033424,4]
[328026865,1716774695433,-111.84294074,0.00033424,4]
[328026866,1716774695443,-674.64,0.00033424,4]
[328026867,1716774695453,-39.03246246,0.00033424,4]
[328026868,1716774695466,-1340.06753754,0.00033424,4]
[328026869,1716774695476,-903.17,0.00033424,4]
[328026870,1716774695487,-1792.24,0.00033424,4]
[328026871,1716774695496,-555.55,0.00033424,4]
[328026872,1716774695507,-500.0,0.00033424,4]
[328026873,1716774695516,-554.9,0.00033424,4]
[328026874,1716774695525,-593.69,0.00033424,4]
[328026875,1716774695534,-1375.79,0.00033424,4]
[328026876,1716774695544,-797.4,0.00033424,4]
[328026877,1716774695553,-811.5,0.00033424,4]
[328026878,1716774695563,-752.63,0.00033424,4]
[328026879,1716774695572,-508.3,0.00033424,4]
[328026880,1716774695581,-612.14,0.00033424,4]
[328026881,1716774695590,-1562.49,0.00033424,4]
[328026882,1716774695599,-1201.55,0.00033424,4]
[328026883,1716774695608,-545.25,0.00033424,4]
[328026884,1716774695618,-753.55,0.00033424,4]
[328026885,1716774695628,-1011.37,0.00033424,4]
[328026886,1716774695637,-666.41,0.00033424,4]
[328026887,1716774695648,-1614.98,0.00033424,4]
[328026888,1716774695658,-801.81,0.00033424,4]
[328026889,1716774695668,-664.62,0.00033424,4]
[328026890,1716774695677,-584.07,0.00033424,4]
[328026891,1716774695687,-1253.98,0.00033424,4]
[328026892,1716774695696,-1261.26,0.00033424,4]
[328026893,1716774695706,-576.77,0.00033424,4]
[328026894,1716774695715,-1690.76,0.00033424,4]
[328026895,1716774695724,-603.3,0.00033424,4]
[328026896,1716774695733,-256.67415431,0.00033424,4]
[328026897,1716774695743,-12954.13,0.00033424,4]
[328026898,1716774695753,-193.53,0.00033447,2]
[328026899,1716774695762,-288.04,0.00033659,2]
[328026900,1716774695771,-549.22986407,0.00033698,4]
[328026901,1716774695780,-623.55,0.00033698,4]
[328026902,1716774695789,-716.74179845,0.00033698,4]
[328026903,1716774695798,-520.93,0.00033698,4]
[328026904,1716774695808,-502.9152282,0.00033698,4]
[328026905,1716774695817,-810.00649228,0.00033698,4]
[328026906,1716774695826,-920.31769444,0.00033698,4]
[328026907,1716774695836,-523.04631946,0.00033698,4]
[328026908,1716774695845,-559.87821257,0.00033698,4]
[328026909,1716774695854,-3246.5929391,0.00033698,4]
[328026910,1716774695863,-851.05493129,0.00033698,4]
[328026911,1716774695872,-1876.2405,0.00033698,4]
[328026912,1716774695882,-1150.76796415,0.00033698,4]
[328026913,1716774695891,-665.71566171,0.00033698,4]
[328026914,1716774695904,-1737.20180685,0.00033698,4]
[328026915,1716774695913,-589.86793974,0.00033698,4]
[328026916,1716774695924,-1057.83260989,0.00033698,4]
[328026917,1716774695933,-539.20797353,0.00033698,4]
[328026918,1716774695942,-674.65987076,0.00033698,4]
[328026919,1716774695952,-1379.28226509,0.00033698,4]
[328026920,1716774695961,-903.30028404,0.00033698,4]
[328026921,1716774695971,-1792.39607739,0.00033698,4]
[328026922,1716774695980,-555.72321914,0.00033698,4]
[328026923,1716774695990,-484.25611991,0.00033698,4]
[328026924,1716774695999,-555.07289618,0.00033698,4]
[328026925,1716774696008,-593.91510425,0.00033698,4]
[328026926,1716774696018,-1376.01,0.00033698,4]
[328026927,1716774696028,-797.47524245,0.00033698,4]
[328026928,1716774696037,-811.64996356,0.00033698,4]
[328026929,1716774696046,-752.70626879,0.00033698,4]
[328026930,1716774696056,-508.53031922,0.00033698,4]
[328026931,1716774696065,-612.2433,0.00033698,4]
[328026932,1716774696074,-1562.64985844,0.00033698,4]
[328026933,1716774696084,-1201.65618453,0.00033698,4]
[328026934,1716774696094,-545.28638285,0.00033698,4]
[328026935,1716774696103,-753.60741477,0.00033698,4]
[328026936,1716774696112,-1011.44812461,0.00033698,4]
[328026937,1716774696121,-666.46187505,0.00033698,4]